Workbook

Sheet Исходные данные
A1: Наименование заемщика | B1: Отрасль | C1: Подразделение | D1: вид связи с банком | E1: Наличие графика | F1: вид валюты кредита | G1: Счет | H1: № дог. | I1: Лимит задолж. | J1: Свободный лимит | K1: Задолж. на текущ.дату, в рублях и в рубл. эквиваленте | L1: % | M1: Дата выдачи | N1: Дата погашения | O1: пролонга-ция | P1: Дн. до погаш. | Q1: Обеспе-чение | R1: % резер-ва | S1: Катег.качества | T1: Расчетный резерв | U1: Факт.сфор. РВПС | V1: Отклонения | W1: Наименование заемщика
A2: Строй УК Финанс ООО | B2: строительство | E2: без гр. | G2: =[1]Портфель!C48 -> 0 | H2: =[1]Портфель!E48 -> 0 | I2: 0 | J2: 0 | K2: =[1]Портфель!H48 -> 357280000 | L2: =[1]Портфель!I48 -> 0 | M2: =[1]Портфель!K48 -> 00:00:00 | N2: =[1]Портфель!L48 -> 00:00:00 | O2: =[1]Портфель!M48 -> 00:00:00 | P2: =O2-#REF!+1 ->  | Q2: =[1]Портфель!P48 -> 0 | R2: 5 | S2: =[1]Портфель!Q48 -> 0 | T2: =K2*R2% -> 17864000 | U2: 200200 | V2: =T2-U2 -> 17663800 | W2: Строй УК Финанс ООО | Z2: =W2*R2% ->  | AC2: =AA2*R2% -> 0 | AD2: =R2%*J2 -> 0 | AE2: =K2*1*L2%/365 -> 0
A3: =[1]Портфель!B17 -> ИФК "Авангард"ООО | B3: оптовая и розничная торговля | G3: =[1]Портфель!C17 -> 45107 | H3: =[1]Портфель!E17 -> 4 | I3: 18000000 | J3: =I3-K3 -> 1000000 | K3: =[1]Портфель!H17 -> 17000000 | L3: =[1]Портфель!I17 -> 14 | M3: =[1]Портфель!K17 -> 2011-01-25 | N3: =[1]Портфель!L17 -> 2013-01-22 | P3: =N3-$K$1+1 ->  | Q3: не об. | R3: 0 | S3: =[1]Портфель!Q17 -> 2 | T3: =K3*R3% -> 0 | V3: 0 | W3: =[1]Портфель!X17 -> 0 | AD3: 0 | AE3: =K3*1*L3%/365 -> 6520.547945
A4: Габсалямов А.М. | E4: без гр. | G4: =[1]Портфель!C492 -> 45509 | H4: 75 | I4: 300000 | J4: =I4-K4 -> 71.6 | K4: =[1]Портфель!H492 -> 299928.4 | L4: 25 | M4: 2010-02-15 | N4: 2011-02-14 | P4: =N4-$K$1+1 ->  | Q4: не об. | R4: 1 | S4: =[1]Портфель!Q492 -> 1 | T4: 2999.284 | U4: 0 | V4: 2999.284 | W4: Габсалямов А.М. | Z4: =W4*R4% ->  | AC4: =AA4*R4% -> 0 | AD4: 0.716 | AE4: 205.430411 | AI4: =AE4*R4% -> 2.05430411
A5: Конт-Ойл ООО(65,0 млн.) | B5: оптовая торговля топливом | E5: без гр. | G5: =[1]Портфель!C33 -> 45205 | H5: =[1]Портфель!E33 -> 117 | I5: 65000000 | J5: =I5-K5 -> 63500000 | K5: =[1]Портфель!H33 -> 1500000 | L5: =[1]Портфель!I33 -> 18 | M5: =[1]Портфель!K33 -> 2010-09-10 | N5: =[1]Портфель!L33 -> 2011-03-03 | P5: =N5-$K$1+1 ->  | Q5: =[1]Портфель!P33 -> не об. | R5: 1 | S5: =[1]Портфель!Q33 -> 2 | T5: 15000 | U5: 650000 | V5: -635000 | W5: Конт-Ойл ООО(65,0 млн.) | AC5: 0 | AD5: 635000 | AE5: 739.7260274
A6: =[1]Портфель!B19 -> Уралмаркет ООО(50 млн.руб.) | B6: оптовая и розничная торговля | C6: ф.кубань | E6: без гр. | G6: 45201 | H6: =[1]Портфель!E19 -> 007/11/юл | I6: 3000000 | J6: =I6-K6 -> -46998420.22 | K6: =[1]Портфель!H19 -> 49998420.22 | L6: 20 | M6: =[1]Портфель!K19 -> 2011-01-28 | N6: =[1]Портфель!L19 -> 2011-02-25 | P6: =N6-$K$1+1 ->  | Q6: об. | R6: 0 | S6: =[1]Портфель!Q19 -> 1 | T6: 0 | V6: 0 | W6: =[1]Портфель!X19 -> 0 | Z6: 0 | AC6: 0 | AD6: 0 | AE6: =K6*1*L6%/365 -> 27396.39464
A7: =[1]Портфель!B18 -> Итого по сч 45107 ( свыше 1 года) | B7: оптовая торговля топливом | C7: ф.кубань | E7: без гр. | G7: =[1]Портфель!C18 -> 0 | H7: =[1]Портфель!E18 -> 0 | I7: 4000000 | J7: =I7-K7 -> -102518500 | K7: =[1]Портфель!H18 -> 106518500 | L7: =[1]Портфель!I18 -> 0 | M7: =[1]Портфель!K18 -> 00:00:00 | N7: =[1]Портфель!L18 -> 00:00:00 | P7: =N7-#REF!+1 ->  | Q7: =[1]Портфель!P18 -> 0 | R7: 0 | S7: =[1]Портфель!Q18 -> 0 | T7: 0 | V7: 0 | W7: =[1]Портфель!X18 -> 0 | Z7: 0 | AC7: 0 | AD7: 0 | AE7: =K7*1*L7%/365 -> 0
A8: Васина Н.Ю. | E8: без гр. | G8: =[1]Портфель!C165 -> 45505 | H8: 54*20 | I8: 0 | J8: 0 | K8: =[1]Портфель!H165 -> 11400000 | L8: 21 | M8: 2010-03-29 | N8: 2011-02-22 | P8: =N8-$K$1+1 ->  | Q8: не об. | R8: 0 | S8: =[1]Портфель!Q165 -> 1 | T8: 0 | U8: 0 | V8: 0 | W8: Васина Н.Ю. | AC8: 0 | AD8: 0 | AE8: =K8*1*L8%/365 -> 6558.90411 | AI8: =AE8*R8% -> 0
A9: Астапенко Н.А. | E9: без гр. | G9: =[1]Портфель!C150 -> 45505 | H9: 58*20 | I9: 0 | J9: 0 | K9: =[1]Портфель!H150 -> 3900000 | L9: 21 | M9: 2010-03-30 | N9: 2011-02-23 | P9: =N9-$K$1+1 ->  | Q9: об. | R9: 0 | S9: =[1]Портфель!Q150 -> 1 | T9: 0 | U9: 0 | V9: 0 | W9: Астапенко Н.А. | AC9: 0 | AD9: 0 | AE9: 2243.835616 | AF9: спец.техника | AI9: =AE9*R9% -> 0
A10: Центр ООО (50,0 млн. 18.04.11) | B10: оптовая торговля топливом | E10: без гр. | G10: =[1]Портфель!C43 -> 45205 | H10: =[1]Портфель!E43 -> 82 | I10: 50000000 | J10: =I10-K10 -> 48000000 | K10: =[1]Портфель!H43 -> 2000000 | L10: =[1]Портфель!I43 -> 20 | M10: =[1]Портфель!K43 -> 2010-10-05 | N10: =[1]Портфель!L43 -> 2010-12-03 | P10: =N10-$K$1+1 ->  | Q10: =[1]Портфель!O43 -> 0 | R10: 0 | S10: =[1]Портфель!Q43 -> 3 | T10: 0 | U10: 0 | V10: 0 | W10: Центр ООО (50,0 млн. 18.04.11) | AC10: 0 | AD10: 0 | AE10: 1095.890411
A11: Геотон ООО | B11: оптовая и розничная торговля | E11: без гр. | G11: =[1]Портфель!C31 -> 45204 | H11: =[1]Портфель!E31 -> 148 | K11: =[1]Портфель!H31 -> 1900000 | L11: =[1]Портфель!I31 -> 16 | M11: =[1]Портфель!K31 -> 2010-07-23 | N11: =[1]Портфель!L31 -> 2010-10-05 | P11: =N11-$K$1+1 ->  | Q11: =[1]Портфель!P31 -> об. | R11: 1 | S11: =[1]Портфель!Q31 -> 2 | T11: 19000 | U11: 360000 | V11: -341000 | W11: Геотон ООО | AC11: 0 | AD11: 0 | AE11: 832.8767123
A12: =[1]Портфель!B27 -> Уральский капитал ОАО | B12: оптовая торговля топливом | G12: =[1]Портфель!C27 -> 45204 | H12: =[1]Портфель!E27 -> 011/11/юл | K12: =[1]Портфель!H27 -> 10000000 | L12: =[1]Портфель!I27 -> 16 | M12: =[1]Портфель!K27 -> 2011-02-04 | N12: =[1]Портфель!L27 -> 2011-05-05 | O12: =[1]Портфель!M27 -> 00:00:00 | P12: =O12-#REF!+1 ->  | Q12: =[1]Портфель!P27 -> об. | R12: 1 | S12: =[1]Портфель!Q27 -> 3 | T12: =K12*R12% -> 100000 | U12: 208380 | V12: -108380 | W12: =[1]Портфель!X27 -> 0 | AD12: 0 | AE12: =K12*1*L12%/365 -> 4383.561644
A13: =[1]Портфель!B16 -> ИФК "Авангард"ООО | B13: оптовая торговля топливом | C13: л | G13: =[1]Портфель!C16 -> 45107 | H13: =[1]Портфель!E16 -> 65 | I13: 50000000 | J13: =I13-K13 -> 49582000 | K13: =[1]Портфель!H16 -> 418000 | L13: =[1]Портфель!I16 -> 21 | M13: =[1]Портфель!K16 -> 2010-06-04 | N13: =[1]Портфель!L16 -> 2012-05-29 | P13: =N13-$K$1+1 ->  | Q13: =[1]Портфель!P16 -> нед.об. | R13: 0 | S13: =[1]Портфель!Q16 -> 2 | T13: 0 | V13: 0 | W13: =[1]Портфель!X16 -> 0 | Z13: 0 | AC13: 0 | AD13: 0
A14: Сорокин И.С. | E14: без гр. | G14: =[1]Портфель!C261 -> 45506 | H14: =[1]Портфель!E261 -> 123*20 | K14: =[1]Портфель!H261 -> 320000 | L14: =[1]Портфель!I261 -> 27 | M14: =[1]Портфель!K261 -> 2009-12-02 | N14: =[1]Портфель!L261 -> 2011-10-02 | O14: =[1]Портфель!M261 -> 00:00:00 | P14: =O14-#REF!+1 ->  | Q14: =[1]Портфель!P261 -> об. | R14: 21 | S14: =[1]Портфель!Q261 -> 2 | T14: 67200 | U14: 2041200 | V14: -1974000 | W14: Сорокин И.С. | AD14: 0 | AE14: 236.7123288
A15: Тепломаш ООО | B15: оптовая торговля топливом | E15: без гр. | G15: =[1]Портфель!C76 -> 45206 | H15: =[1]Портфель!E76 -> 100 | K15: =[1]Портфель!H76 -> 24899000 | L15: =[1]Портфель!I76 -> 21 | M15: =[1]Портфель!K76 -> 2010-07-29 | N15: =[1]Портфель!L76 -> 2011-01-25 | O15: =[1]Портфель!M76 -> 2011-07-22 | P15: =O15-#REF!+1 ->  | Q15: =[1]Портфель!P76 -> не об. | R15: 1 | S15: =[1]Портфель!Q76 -> 2 | T15: 248990 | U15: 460000 | V15: -211010 | W15: Тепломаш ООО | Z15: =W15*R15% ->  | AC15: =AA15*R15% -> 0 | AD15: 0 | AE15: 14325.45205
A16: Вектор ООО(40,0 млн.) | B16: оптовая торговля топливом | E16: без гр. | G16: =[1]Портфель!C35 -> 45205 | H16: =[1]Портфель!E35 -> 115 | I16: 40000000 | J16: =I16-K16 -> 30000000 | K16: =[1]Портфель!H35 -> 10000000 | L16: =[1]Портфель!I35 -> 18 | M16: =[1]Портфель!K35 -> 2010-09-03 | N16: =[1]Портфель!L35 -> 2011-03-01 | P16: =N16-$K$1+1 ->  | Q16: =[1]Портфель!P35 -> об. | R16: 1 | S16: =[1]Портфель!Q35 -> 2 | T16: 100000 | U16: 400000 | V16: -300000 | W16: Вектор ООО(40,0 млн.) | AC16: 0 | AD16: 300000 | AE16: 4931.506849
A17: =[1]Портфель!B59 -> Техмашстрой ООО( 65,0 млн.) | B17: прочие отрасли | D17: СК | E17: без гр. | G17: =[1]Портфель!C60 -> 45206 | H17: 38 | I17: 70000000 | J17: =I17-K17-K58 -> 500000 | K17: =[1]Портфель!H60 -> 4500000 | L17: 21 | M17: 2010-03-31 | N17: 2011-02-28 | P17: =N17-$K$1+1 ->  | Q17: не об. | R17: 0 | S17: =[1]Портфель!Q60 -> 1 | T17: 0 | U17: 0 | V17: 0 | W17: =[1]Портфель!X59 -> 0 | Z17: 0 | AC17: 0 | AD17: 0 | AE17: 2589.041096 | AI17: =AE17*R17% -> 0
A18: Мелада ООО (4 млн.) | B18: строительство | E18: без гр. | G18: =[1]Портфель!C86 -> 45205 | H18: 82 | I18: 4000000 | J18: =I18-K18-K19 -> -51000000 | K18: =[1]Портфель!H86 -> 30000000 | L18: =[1]Портфель!I86 -> 25 | M18: =[1]Портфель!K86 -> 2010-07-29 | N18: 2010-09-24 | O18: =[1]Портфель!M86 -> 2011-06-29 | P18: =O18-#REF!+1 ->  | Q18: не об. | R18: 21 | S18: =[1]Портфель!Q86 -> 3 | T18: 6300000 | U18: 420000 | V18: 5880000 | W18: Мелада ООО (4 млн.) | AC18: 0 | AD18: -10710000 | AE18: 20547.94521
A19: Мелада ООО (4 млн.)2 тр. | B19: строительство | E19: без гр. | G19: =[1]Портфель!C40 -> 45205 | H19: 82 | K19: =[1]Портфель!H40 -> 25000000 | L19: =[1]Портфель!I31 -> 16 | M19: 2010-10-05 | N19: 2010-12-03 | O19: =[1]Портфель!M86 -> 2011-06-29 | P19: =O19-#REF!+1 ->  | Q19: не об. | R19: 21 | S19: 3 | T19: 5250000 | U19: 420000 | V19: 4830000 | W19: Мелада ООО (4 млн.)2 тр. | AC19: 0 | AD19: 0 | AE19: 10958.90411
A20: =[1]Портфель!B58 -> УралТоргИмпекс ООО | B20: строительство | E20: без гр. | G20: =[1]Портфель!C58 -> 45206 | H20: 30 | I20: 380000 | J20: =I20-K20 -> -26620000 | K20: =[1]Портфель!H58 -> 27000000 | L20: 20 | M20: 2010-03-25 | N20: 2010-09-24 | O20: =[1]Портфель!M58 -> 00:00:00 | P20: =O20-#REF!+1 ->  | Q20: не об. | R20: 21 | S20: =[1]Портфель!Q58 -> 2 | T20: 5670000 | U20: 79800 | V20: 5590200 | W20: =[1]Портфель!X58 -> 0 | Z20: 0 | AC20: 0 | AD20: -5590200 | AE20: 14794.52055
A21: Сучков А.Н. | E21: без гр. | G21: =[1]Портфель!C529 -> 45509 | H21: 76 | I21: 40000 | J21: =I21-K21 -> -7080.24 | K21: =[1]Портфель!H529 -> 47080.24 | L21: 25 | M21: 2010-03-02 | N21: 2011-03-01 | P21: =N21-$K$1+1 ->  | Q21: не об. | R21: 0 | S21: =[1]Портфель!Q529 -> 1 | T21: 0 | U21: 0 | V21: 0 | W21: Сучков А.Н. | AC21: 0 | AD21: 0 | AE21: 32.24673973 | AI21: =AE21*R21% -> 0
A22: Фахретдинов И.М. | E22: без гр. | G22: =[1]Портфель!C181 -> 45505 | H22: 28*20 | I22: 0 | J22: 0 | K22: =[1]Портфель!H181 -> 0 | L22: 21 | M22: 2010-03-09 | N22: 2011-03-01 | P22: =N22-$K$1+1 ->  | Q22: не об. | R22: 0 | S22: =[1]Портфель!Q181 -> 2 | T22: 0 | U22: 0 | V22: 0 | W22: Фахретдинов И.М. | AC22: 0 | AD22: 0 | AE22: 0 | AI22: =AE22*R22% -> 0
A23: Инфраструктура ООО( 10,0 млн.) | B23: строительство | E23: без гр. | G23: =[1]Портфель!C32 -> 0 | H23: =[1]Портфель!E32 -> 0 | I23: 10000000 | K23: =[1]Портфель!H32 -> 62776000 | L23: =[1]Портфель!I32 -> 0 | M23: =[1]Портфель!K32 -> 00:00:00 | N23: =[1]Портфель!L32 -> 00:00:00 | P23: =N23-$K$1+1 ->  | Q23: =[1]Портфель!P32 -> 0 | R23: 1.5 | S23: =[1]Портфель!Q32 -> 0 | T23: 941640 | U23: 150000 | V23: 791640 | W23: Инфраструктура ООО( 10,0 млн.) | AC23: 0 | AD23: 0 | AE23: 0
A24: Арсланова З.Ф. | E24: без гр. | G24: =[1]Портфель!C209 -> 45505 | H24: 36*20 | I24: 0 | J24: 0 | K24: =[1]Портфель!H209 -> 16950000 | L24: 21 | M24: 2010-03-15 | N24: 2011-03-01 | P24: =N24-$K$1+1 ->  | Q24: об. | R24: 0 | S24: =[1]Портфель!Q209 -> 1 | T24: 0 | U24: 0 | V24: 0 | W24: Арсланова З.Ф. | AC24: 0 | AD24: 0 | AE24: 9752.054795 | AI24: =AE24*R24% -> 0
A25: Доброневский Р.Л. | E25: без гр. | G25: =[1]Портфель!C168 -> 45505 | H25: 22*20 | I25: 0 | J25: 0 | K25: =[1]Портфель!H168 -> 10700000 | L25: 27 | M25: 2010-03-04 | N25: 2011-03-02 | P25: =N25-$K$1+1 ->  | Q25: нед.об. | R25: 0 | S25: =[1]Портфель!Q168 -> 1 | T25: 0 | U25: 0 | V25: 0 | W25: Доброневский Р.Л. | AC25: 0 | AD25: 0 | AE25: 7915.068493 | AF25: транспорт | AI25: =AE25*R25% -> 0
A26: Фролова Л.Г. | E26: без гр. | G26: =[1]Портфель!C201 -> 45505 | H26: 27*20 | I26: 0 | J26: 0 | K26: =[1]Портфель!H201 -> 6000000 | L26: 21 | M26: 2010-03-09 | N26: 2011-03-03 | P26: =N26-$K$1+1 ->  | Q26: не об. | R26: 0 | S26: =[1]Портфель!Q201 -> 1 | T26: 0 | U26: 0 | V26: 0 | W26: Фролова Л.Г. | AC26: 0 | AD26: 0 | AE26: 3452.054795 | AI26: =AE26*R26% -> 0
A27: Проектно-технол.институт НХП ООО (1,5 млн. н/в) | B27: оптовая торговля топливом | E27: без гр. | G27: =[1]Портфель!C30 -> 45203 | H27: =[1]Портфель!E30 -> 165 | I27: 1500000 | J27: =I27-K27 -> -18126000 | K27: =[1]Портфель!H30 -> 19626000 | L27: =[1]Портфель!I30 -> 16 | M27: =[1]Портфель!K30 -> 2010-12-31 | N27: =[1]Портфель!L30 -> 2011-01-28 | Q27: =[1]Портфель!P30 -> не об. | R27: 3 | S27: =[1]Портфель!Q30 -> 2 | T27: 588780 | U27: 45000 | V27: 543780 | W27: Проектно-технол.институт НХП ООО (1,5 млн. н/в) | AC27: 0 | AD27: -543780 | AE27: 8603.178082
A28: Зайнитдинов А.С. | E28: без гр. | G28: =[1]Портфель!C169 -> 45505 | H28: 59*20 | I28: 0 | J28: 0 | K28: =[1]Портфель!H169 -> 6400000 | L28: 21 | M28: 2010-03-30 | N28: 2011-03-04 | Q28: нед.об. | R28: 0 | S28: =[1]Портфель!Q169 -> 1 | T28: 0 | U28: 0 | V28: 0 | W28: Зайнитдинов А.С. | AC28: 0 | AD28: 0 | AE28: 3682.191781 | AF28: спец.техника | AI28: =AE28*R28% -> 0
A29: Крымгужина Ю. | E29: без гр. | G29: =[1]Портфель!C515 -> 45509 | H29: 78 | I29: 15000 | J29: =I29-K29 -> 4719.67 | K29: =[1]Портфель!H515 -> 10280.33 | L29: 25 | M29: 2010-03-05 | N29: 2011-03-04 | Q29: не об. | R29: 15 | S29: =[1]Портфель!Q515 -> 1 | T29: 1542.0495 | U29: 2221.51 | V29: -679.4605 | W29: Крымгужина Ю. | AC29: 0 | AD29: 707.9505 | AE29: 7.041321918 | AI29: 1.056198288
A30: =[1]Портфель!B20 -> Глобус ООО(18 млн.) | C30: ф.Кубань | G30: =[1]Портфель!C20 -> 45201 | H30: =[1]Портфель!E20 -> 012/11/ЮЛ/6 | I30: 1000000 | J30: =I30-K30 -> -16999999.09 | K30: =[1]Портфель!H20 -> 17999999.09 | L30: =[1]Портфель!I20 -> 20 | M30: =[1]Портфель!K24 -> 00:00:00 | N30: =[1]Портфель!L20 -> 2011-03-11 | Q30: =[1]Портфель!P20 -> не об. | R30: 0 | S30: =[1]Портфель!Q516 -> 1 | W30: =[1]Портфель!X20 -> 0
A31: =[1]Портфель!B23 -> ЮТЭК ООО (1 млн.) | B31: оптовая торговля топливом | E31: без гр. | G31: =[1]Портфель!C23 -> 45201 | H31: =[1]Портфель!E23 -> 046-03 | K31: =[1]Портфель!H23 -> 842658.35 | L31: =[1]Портфель!I23 -> 19 | M31: =[1]Портфель!K23 -> 2011-02-04 | N31: =[1]Портфель!L23 -> 2011-03-04 | P31: =N31-$K$1+1 ->  | Q31: =[1]Портфель!P23 -> об. | R31: 1 | S31: =[1]Портфель!Q23 -> 2 | T31: =K31*R31% -> 8426.5835 | U31: 117500 | V31: =T31-U31 -> -109073.4165 | W31: =[1]Портфель!X23 -> 0 | AD31: =R31%*J31 -> 0 | AE31: =K31*1*L31%/365 -> 438.6440726
A32: Давыдов Е.С. | C32: ф.Кубань | E32: гр. | G32: =[1]Портфель!C246 -> 45505 | H32: ФЛ-025 | I32: 0 | J32: 0 | K32: =[1]Портфель!H246 -> 9376.32 | L32: 22 | M32: 2010-03-10 | N32: 2011-03-04 | Q32: об. | R32: 0 | S32: =[1]Портфель!Q246 -> 1 | T32: 0 | U32: 0 | V32: 0 | W32: Давыдов Е.С. | Y32: 2011-02-10 | AC32: 0 | AD32: 0 | AE32: 5.651480548 | AF32: транспорт | AI32: 0
A33: Итого ( до 30 дней) | I33: =SUM(I1:I32) -> 317235000 | J33: =SUM(J1:J32) -> -69683208.28 | K33: =SUM(K1:K32) -> 825295243 | T33: =SUM(T1:T32) -> 37177577.92 | U33: =SUM(U1:U32) -> 5554301.51 | V33: =SUM(V1:V32) -> 31623276.41 | W33: Итого ( до 30 дней) | AD33: 0 | AE33: 0 | AI33: 0
A34: в т.ч. В валюте | V34: =T34-U34 -> 0 | W34: в т.ч. В валюте | AD34: 0 | AE34: 0 | AI34: 0
A35: в т.ч. В рублях | K35: =K33-K34 -> 825295243 | V35: =T35-U35 -> 0 | W35: в т.ч. В рублях | AD35: 0 | AE35: 0 | AI35: 0
A36: =[1]Портфель!B28 -> СовБурТех ООО(19758т.р.) | B36: оптовая и розничная торговля | E36: без гр. | G36: =[1]Портфель!C28 -> 45204 | H36: 148 | I36: 4425100 | J36: =I36-K36 -> -5574900 | K36: =[1]Портфель!H28 -> 10000000 | L36: =[1]Портфель!I28 -> 18 | M36: =[1]Портфель!K28 -> 2011-01-31 | N36: =[1]Портфель!L28 -> 2011-10-18 | O36: 2011-03-10 | P36: =O36-#REF!+1 ->  | Q36: =[1]Портфель!P28 -> об. | R36: 1 | S36: 2 | T36: =K36*R36% -> 100000 | U36: 19000 | V36: =T36-U36 -> 81000 | W36: =[1]Портфель!X28 -> 0 | Z36: =W36*R36% -> 0 | AC36: =AA36*R36% -> 0 | AD36: -55749 | AE36: 4931.506849
A37: Афанасьева А.А. | E37: без гр. | G37: =[1]Портфель!C146 -> 45504 | H37: 53*20 | I37: 0 | J37: 0 | K37: =[1]Портфель!H146 -> 5000000 | L37: 21 | M37: 2010-03-30 | N37: 2011-03-11 | P37: =N37-$K$1+1 ->  | Q37: об. | R37: 0 | S37: =[1]Портфель!Q146 -> 1 | T37: 0 | U37: 0 | V37: 0 | W37: Афанасьева А.А. | Z37: =W37*R37% ->  | AC37: =AA37*R37% -> 0 | AD37: 0 | AE37: 2876.712329 | AI37: =AE37*R37% -> 0
A38: Габсалямов А.М. | E38: без гр. | G38: =[1]Портфель!C172 -> 45505 | H38: 52*20 | I38: 0 | J38: 0 | K38: =[1]Портфель!H172 -> 14050000 | L38: 21 | M38: 2010-03-29 | N38: 2011-03-15 | Q38: об. | R38: 1 | S38: =[1]Портфель!Q172 -> 1 | T38: 140500 | U38: 67000 | V38: 73500 | W38: Габсалямов А.М. | Z38: =W38*R38% ->  | AC38: =AA38*R38% -> 0 | AD38: 0 | AE38: 8083.561644 | AI38: 80.83561644
A39: Маркелова Е.В. | E39: без гр. | G39: =[1]Портфель!C185 -> 45505 | H39: 38*20 | I39: 0 | J39: 0 | K39: =[1]Портфель!H185 -> 3000000 | L39: 21 | M39: 2010-03-22 | N39: 2011-03-16 | Q39: нед.об. | R39: 0 | S39: =[1]Портфель!Q185 -> 1 | T39: 0 | U39: 0 | V39: 0 | W39: Маркелова Е.В. | AC39: 0 | AD39: 0 | AE39: 1726.027397 | AF39: транспорт | AI39: 0
A40: Ахметов Д.В. | E40: без гр. | G40: =[1]Портфель!C187 -> 45505 | H40: 51*20 | I40: 0 | J40: 0 | K40: =[1]Портфель!H187 -> 445000 | L40: 21 | M40: 2010-03-29 | N40: 2011-03-18 | Q40: об. | R40: 0 | S40: =[1]Портфель!Q187 -> 1 | T40: 0 | V40: 0 | W40: Ахметов Д.В. | AC40: 0 | AD40: 0 | AE40: 256.0273973 | AF40: спец.техника | AI40: 0
A41: Насибуллин Т.Т. | E41: без гр. | G41: 45503 | H41: 620*20 | K41: =[1]Портфель!H129 -> 2212315609 | L41: 21 | M41: 2010-12-21 | N41: 2011-03-18 | Q41: не об. | R41: 0 | S41: 1 | T41: 0 | V41: 0 | W41: Насибуллин Т.Т. | AC41: 0 | AD41: 0 | AE41: 1272839.117 | AI41: 0
A42: ООО "РРТЦ Башкортостан" | B42: оптовая и розничная торговля | E42: без гр. | G42: 45204 | H42: 156 | K42: =[1]Портфель!H26 -> 11750000 | L42: 21 | M42: 2010-12-21 | N42: 2011-03-18 | Q42: не об. | R42: 1 | S42: 2 | T42: 117500 | U42: 95000 | V42: 22500 | W42: ООО "РРТЦ Башкортостан" | AC42: 0 | AD42: 0 | AE42: 6760.273973 | AI42: 67.60273973
A43: Яхин Р.Ф. | E43: без гр. | G43: =[1]Портфель!C226 -> 45505 | H43: 42*20 | I43: 0 | J43: 0 | K43: =[1]Портфель!H226 -> 600000 | L43: 25 | M43: 2010-03-22 | N43: 2011-03-21 | P43: =N43-$K$1+1 ->  | Q43: не об. | R43: 0 | S43: =[1]Портфель!Q226 -> 1 | T43: 0 | U43: 0 | V43: 0 | W43: Яхин Р.Ф. | Z43: =W43*R43% ->  | AC43: =AA43*R43% -> 0 | AD43: 0 | AE43: 410.9589041 | AI43: 0
A44: ООО "Мерфи" | B44: строительство | E44: без гр. | G44: =[1]Портфель!C81 -> 45206 | H44: 32 | I44: 0 | J44: 0 | K44: =[1]Портфель!H81 -> 9900000 | L44: 18 | M44: 2010-03-25 | N44: 2011-03-24 | P44: =N44-$K$1+1 ->  | Q44: не об. | R44: 51 | S44: 4 | T44: 5049000 | U44: 1122000 | V44: 3927000 | W44: ООО "Мерфи" | AC44: 0 | AD44: 0 | AE44: 4882.191781 | AF44: поручительство | AI44: 2489.917808
A45: Любимова Л.Р. | E45: гр. | G45: =[1]Портфель!C227 -> 45505 | H45: 44*20 | I45: 0 | J45: 0 | K45: =[1]Портфель!H227 -> 77000 | L45: 25 | M45: 2010-03-25 | N45: 2011-03-24 | Q45: не об. | R45: 0 | S45: =[1]Портфель!Q227 -> 1 | T45: 0 | U45: 0 | V45: 0 | W45: Любимова Л.Р. | Y45: 2011-02-10 | AC45: 0 | AD45: 0 | AE45: 52.73972603 | AI45: 0
A46: Борзенков Д.В. | E46: без гр. | G46: =[1]Портфель!C206 -> 45505 | H46: 48*20П | I46: 0 | J46: 0 | K46: =[1]Портфель!H206 -> 2270000 | L46: 21 | M46: 2010-03-26 | N46: 2011-03-24 | Q46: об. | R46: 0 | S46: =[1]Портфель!Q206 -> 1 | T46: 0 | U46: 0 | V46: 0 | W46: Борзенков Д.В. | AC46: 0 | AD46: 0 | AE46: 1306.027397 | AF46: спец.техника | AI46: 0
A47: =[1]Портфель!B82 -> УХБК ОАО | B47: оптовая торговля топливом | E47: без гр. | G47: =[1]Портфель!C82 -> 45206 | H47: 34 | I47: 15000000 | J47: =I47-K47 -> -1000000 | K47: =[1]Портфель!H82 -> 16000000 | L47: 21 | M47: 2010-03-25 | N47: 2010-12-20 | O47: 2011-03-24 | P47: =O47-$K$1+1 ->  | Q47: об. | R47: 1 | S47: =[1]Портфель!Q82 -> 2 | T47: 160000 | U47: 144500 | V47: 15500 | W47: =[1]Портфель!X82 -> 0 | Z47: 0 | AC47: 0 | AD47: -10000 | AE47: 9205.479452 | AF47: товары в обороте | AI47: =AE47*R47% -> 92.05479452
A48: Михайлов А.А. | E48: гр. | G48: =[1]Портфель!C191 -> 45505 | H48: 47*20 | I48: 0 | J48: 0 | K48: =[1]Портфель!H191 -> 310000 | L48: 25 | M48: 2010-03-26 | N48: 2011-03-25 | Q48: об. | R48: 0 | S48: =[1]Портфель!Q191 -> 1 | T48: 0 | U48: 0 | V48: 0 | W48: Михайлов А.А. | Y48: 2011-02-10 | AC48: 0 | AD48: 0 | AE48: 212.3287671 | AF48: транспорт | AI48: 0
A49: Кривошеин Д.А. | E49: без гр. | G49: =[1]Портфель!C228 -> 45505 | H49: 47*20П | I49: 0 | J49: 0 | K49: =[1]Портфель!H228 -> 145460 | L49: 21 | M49: 2010-03-26 | N49: 2011-03-25 | Q49: не об. | R49: 0 | S49: =[1]Портфель!Q228 -> 1 | T49: 0 | U49: 0 | V49: 0 | W49: Кривошеин Д.А. | AC49: 0 | AD49: 0 | AE49: 83.68931507 | AI49: 0
A50: Капитал ООО | B50: оптовая торговля топливом | E50: без гр. | G50: =[1]Портфель!C34 -> 45205 | H50: =[1]Портфель!E34 -> 127 | K50: =[1]Портфель!H34 -> 36000000 | L50: =[1]Портфель!I34 -> 21 | M50: =[1]Портфель!K34 -> 2010-09-29 | N50: =[1]Портфель!L34 -> 2011-02-25 | Q50: =[1]Портфель!P34 -> не об. | R50: 1 | S50: 2 | T50: 360000 | U50: 100000 | V50: 260000 | W50: Капитал ООО | AC50: 0 | AD50: 0 | AE50: 20712.32877
A51: Капитал ООО | B51: оптовая торговля топливом | E51: без гр. | G51: =[1]Портфель!C42 -> 45205 | H51: =[1]Портфель!E42 -> 138 | K51: =[1]Портфель!H42 -> 12000000 | L51: =[1]Портфель!I42 -> 21 | M51: =[1]Портфель!K42 -> 2010-10-29 | N51: =[1]Портфель!L42 -> 2011-01-31 | Q51: =[1]Портфель!P42 -> не об. | R51: 1 | S51: 2 | T51: 120000 | U51: 200000 | V51: -80000 | W51: Капитал ООО | AC51: 0 | AD51: 0 | AE51: 6904.109589
A52: Исламов Д.А. | E52: без гр. | G52: =[1]Портфель!C144 -> 45505 | H52: 55*20 | I52: 0 | J52: 0 | K52: =[1]Портфель!H144 -> 250000 | L52: 25 | M52: 2010-03-30 | N52: 2011-03-28 | P52: =N52-$K$1+1 ->  | Q52: об. | R52: 21 | S52: =[1]Портфель!Q144 -> 1 | T52: 52500 | U52: 110250 | V52: -57750 | W52: Исламов Д.А. | Z52: =W52*R52% ->  | AC52: =AA52*R52% -> 0 | AD52: 0 | AE52: 171.2328767 | AF52: транспорт | AI52: =AE52*R52% -> 35.95890411
A53: УралТоргИмпекс ООО | B53: оптовая торговля топливом | E53: без гр. | G53: =[1]Портфель!C55 -> 45206 | H53: =[1]Портфель!E55 -> 55 | I53: 0 | J53: 0 | K53: =[1]Портфель!H55 -> 2700000 | L53: =[1]Портфель!I55 -> 21 | M53: =[1]Портфель!K55 -> 2010-05-05 | N53: =[1]Портфель!L55 -> 2011-04-25 | P53: =N53-$K$1+1 ->  | Q53: =[1]Портфель!P55 -> не об. | R53: 1 | S53: =[1]Портфель!Q55 -> 2 | T53: 27000 | U53: 270000 | V53: -243000 | W53: УралТоргИмпекс ООО | Z53: =W53*R53% ->  | AC53: =AA53*R53% -> 0 | AD53: 0 | AE53: 1553.424658
A54: Салимгареев Р.Р. | E54: без гр. | G54: =[1]Портфель!C151 -> 45505 | H54: 50*20 | I54: 0 | J54: 0 | K54: =[1]Портфель!H151 -> 13998.14 | L54: 21 | M54: 2010-03-29 | N54: 2011-03-28 | P54: =N54-$K$1+1 ->  | Q54: об. | R54: 0 | S54: =[1]Портфель!Q151 -> 1 | T54: 0 | U54: 0 | V54: 0 | W54: Салимгареев Р.Р. | Z54: =W54*R54% ->  | AC54: =AA54*R54% -> 0 | AD54: 0 | AE54: 8.053724384 | AF54: спец.техника | AI54: =AE54*R54% -> 0
A55: =[1]Портфель!B128 -> Итого по сч.45407 | E55: без гр. | G55: =[1]Портфель!C128 -> 0 | H55: =[1]Портфель!E128 -> 0 | K55: =[1]Портфель!H128 -> 24756130.45 | L55: =[1]Портфель!I128 -> 0 | M55: =[1]Портфель!K128 -> 00:00:00 | N55: =[1]Портфель!L128 -> 00:00:00 | P55: =N55-$K$1+1 ->  | Q55: =[1]Портфель!P128 -> 0 | R55: 0 | S55: 1 | T55: 0 | V55: 0 | W55: =[1]Портфель!X128 -> 0 | AD55: 0 | AE55: 0
A56: Аминев Ш.Ф. | E56: гр. | G56: =[1]Портфель!C132 -> 45503 | H56: =[1]Портфель!E132 -> 620*20 | K56: =[1]Портфель!H132 -> 870000 | L56: =[1]Портфель!I132 -> 21 | M56: =[1]Портфель!K132 -> 2010-12-21 | N56: =[1]Портфель!L132 -> 2011-03-18 | P56: =N56-#REF!+1 ->  | Q56: =[1]Портфель!P132 -> не об. | R56: 0 | S56: =[1]Портфель!Q132 -> 1 | T56: 0 | V56: 0 | W56: Аминев Ш.Ф. | Y56: 2011-02-10 | Z56: =W56*R56% ->  | AC56: =AA56*R56% -> 0 | AD56: 0 | AE56: 500.5479452
A57: Саттаров А.Р. | E57: без гр. | G57: =[1]Портфель!C263 -> 45506 | H57: 148*20 | I57: 0 | J57: 0 | K57: =[1]Портфель!H263 -> 238000 | L57: 25 | M57: 2009-12-29 | N57: 2010-06-25 | O57: =[1]Портфель!M263 -> 00:00:00 | P57: =O57-#REF!+1 ->  | Q57: не об. | R57: 1 | S57: =[1]Портфель!Q263 -> 2 | T57: 2380 | U57: 60000 | V57: -57620 | W57: Саттаров А.Р. | AC57: =AA57*R57% -> 0 | AD57: 0 | AE57: 163.0136986 | AI57: =AE57*R57% -> 1.630136986
A58: =[1]Портфель!B60 -> Глобус ООО | B58: прочие отрасли | D58: СК | E58: без гр. | G58: =[1]Портфель!C59 -> 45206 | H58: 38 | I58: 70000000 | K58: =[1]Портфель!H59 -> 65000000 | L58: 21 | M58: 2010-03-31 | N58: 2011-03-30 | P58: =N58-$K$1+1 ->  | Q58: не об. | R58: 0 | S58: =[1]Портфель!Q59 -> 2 | T58: 0 | U58: 0 | V58: 0 | W58: =[1]Портфель!X60 -> 0 | Z58: 0 | AC58: =AA58*R58% -> 0 | AD58: 0 | AE58: 37397.26027 | AI58: =AE58*R58% -> 0
A59: Гайсин Ш.М. | E59: без гр. | G59: =[1]Портфель!C489 -> 45509 | H59: 84 | I59: 300000 | J59: =I59-K59 -> 230085.99 | K59: =[1]Портфель!H489 -> 69914.01 | L59: 25 | M59: 2010-04-02 | N59: 2011-04-01 | Q59: не об. | R59: 0 | S59: =[1]Портфель!Q489 -> 1 | T59: 0 | U59: 0 | V59: 0 | W59: Гайсин Ш.М. | AC59: =AA59*R59% -> 0 | AD59: 0 | AE59: 47.88630822 | AI59: =AE59*R59% -> 0
A60: Маломожнова Т.В. | E60: без гр. | G60: =[1]Портфель!C519 -> 45509 | H60: 85 | I60: 20000 | J60: =I60-K60 -> 5760.43 | K60: =[1]Портфель!H519 -> 14239.57 | L60: 25 | M60: 2010-04-02 | N60: 2011-04-01 | Q60: не об. | R60: 0 | S60: =[1]Портфель!Q519 -> 1 | T60: 0 | U60: 0 | V60: 0 | W60: Маломожнова Т.В. | AC60: 0 | AD60: 0 | AE60: 9.753130137 | AI60: =AE60*R60% -> 0
A61: Тоноян Т.А. | E61: без гр. | G61: =[1]Портфель!C220 -> 45505 | H61: 65*20 | I61: 0 | J61: 0 | K61: =[1]Портфель!H220 -> 26452.22 | L61: 25 | M61: 2010-04-02 | N61: 2011-04-01 | Q61: об. | R61: 0 | S61: =[1]Портфель!Q220 -> 1 | T61: 0 | U61: 0 | V61: 0 | W61: Тоноян Т.А. | AC61: 0 | AD61: 0 | AE61: 18.1179589 | AF61: поручительство | AI61: =AE61*R61% -> 0
A62: Моругов Е.А. | E62: без гр. | G62: =[1]Портфель!C518 -> 45509 | H62: =[2]Портфель!E427 ->  | I62: 100000 | J62: =I62-K62 -> 85189.94 | K62: =[1]Портфель!H518 -> 14810.06 | L62: =[2]Портфель!H427 ->  | M62: =[3]Портфель!J427 ->  | N62: =[3]Портфель!K427 ->  | Q62: =[2]Портфель!N427 ->  | R62: 0 | S62: =[2]Портфель!O427 ->  | T62: 0 | V62: 0 | W62: Моругов Е.А. | AC62: 0 | AD62: 0
A63: Павлов К.С. | E63: без гр. | G63: =[1]Портфель!C182 -> 45505 | H63: 73*20 | I63: 0 | J63: 0 | K63: =[1]Портфель!H182 -> 285050 | L63: 21 | M63: 2010-04-12 | N63: 2011-04-04 | Q63: об. | R63: 0 | S63: =[1]Портфель!Q182 -> 1 | T63: 0 | U63: 0 | V63: 0 | W63: Павлов К.С. | AC63: 0 | AD63: 0 | AE63: 164.0013699 | AF63: транспорт | AI63: =AE63*R63% -> 0
A64: Гарипова Е.Н. | E64: без гр. | G64: =[1]Портфель!C491 -> 45509 | H64: 88 | I64: 30000 | J64: =I64-K64 -> -266617.01 | K64: =[1]Портфель!H491 -> 296617.01 | L64: 25 | M64: 2010-04-07 | N64: 2011-04-06 | Q64: не об. | R64: 0 | S64: =[1]Портфель!Q491 -> 1 | T64: 0 | U64: 0 | V64: 0 | W64: Гарипова Е.Н. | AC64: 0 | AD64: 0 | AE64: 203.1623356 | AI64: =AE64*R64% -> 0
A65: Вильданов Ш.Н. | E65: без гр. | G65: =[1]Портфель!C487 -> 45509 | H65: 89 | I65: 20000 | J65: =I65-K65 -> 20000 | K65: =[1]Портфель!H487 -> 0 | L65: 25 | M65: 2010-04-08 | N65: 2011-04-07 | Q65: не об. | R65: 0 | S65: =[1]Портфель!Q487 -> 1 | T65: 0 | U65: 0 | V65: 0 | W65: Вильданов Ш.Н. | AC65: 0 | AD65: 0 | AE65: 0 | AI65: =AE65*R65% -> 0
A66: Хамадиев А.В. | E66: без гр. | G66: =[1]Портфель!C210 -> 45505 | H66: 72*20 | I66: 0 | J66: 0 | K66: =[1]Портфель!H210 -> 1120000 | L66: 21 | M66: 2010-04-12 | N66: 2011-04-11 | Q66: об. | R66: 0 | S66: =[1]Портфель!Q210 -> 1 | T66: 0 | U66: 0 | V66: 0 | W66: Хамадиев А.В. | AC66: 0 | AD66: =R66%*J66 -> 0 | AE66: =K66*1*L66%/365 -> 644.3835616 | AF66: транспорт | AI66: =AE66*R66% -> 0
A67: =[1]Портфель!B127 -> ИП Бондарь И.В.(10млн.) | E67: без гр. | G67: =[1]Портфель!C127 -> 45407 | H67: =[1]Портфель!E127 -> 006-02 | K67: =[1]Портфель!H127 -> 9822000 | L67: =[1]Портфель!I127 -> 19 | M67: =[1]Портфель!K127 -> 2011-01-18 | N67: =[1]Портфель!L127 -> 2013-01-16 | Q67: не об. | R67: 0 | S67: =[1]Портфель!Q127 -> 1 | T67: 0 | V67: 0 | W67: =[1]Портфель!X127 -> 0 | AD67: 0 | AE67: 5112.821918
A68: Васильев А.В. | E68: без гр. | G68: =[1]Портфель!C184 -> 45505 | H68: 76*20 | I68: 0 | J68: 0 | K68: =[1]Портфель!H184 -> 14000000 | L68: 25 | M68: 2010-04-14 | N68: 2011-04-13 | P68: =N68-$K$1+1 ->  | Q68: об. | R68: 0 | S68: =[1]Портфель!Q184 -> 1 | T68: =K68*R68% -> 0 | U68: 0 | V68: 0 | W68: Васильев А.В. | Z68: =W68*R68% ->  | AC68: =AA68*R68% -> 0 | AD68: 0 | AE68: 9589.041096
A69: =[1]Портфель!B80 -> Тентур ООО ( 38,0 млн.) | B69: оптовая торговля топливом | E69: без гр. | G69: =[1]Портфель!C80 -> 45206 | H69: =[1]Портфель!E80 -> 151 | K69: =[1]Портфель!H80 -> 38000000 | L69: =[1]Портфель!I80 -> 21 | M69: =[1]Портфель!K80 -> 2010-12-06 | N69: =[1]Портфель!L80 -> 2011-12-05 | Q69: =[1]Портфель!P80 -> не об. | R69: 1 | S69: =[1]Портфель!Q80 -> 2 | T69: 380000 | U69: 400000 | V69: -20000 | W69: =[1]Портфель!X80 -> 0 | AD69: 0 | AE69: 21863.0137
A70: Дианит ООО(60,0 млн.) | B70: оптовая торговля топливом | E70: без гр. | G70: =[1]Портфель!C70 -> 45206 | H70: 48 | I70: 60000000 | J70: =I70-K70 -> 25000000 | K70: =[1]Портфель!H70 -> 35000000 | L70: 21 | M70: 2010-04-19 | N70: 2011-04-18 | Q70: об. | R70: 1 | S70: =[1]Портфель!Q70 -> 2 | T70: 350000 | U70: 600000 | V70: -250000 | W70: Дианит ООО(60,0 млн.) | Z70: =W70*R70% ->  | AC70: =AA70*R70% -> 0 | AD70: 250000 | AE70: 20136.9863 | AI70: =AE70*R70% -> 201.369863
A71: Габсалямова О.С.( 300,0 т.р.) | E71: без гр. | G71: =[1]Портфель!C493 -> 45509 | H71: 90*20 | I71: 300000 | J71: =I71-K71 -> 150293.05 | K71: =[1]Портфель!H493 -> 149706.95 | L71: 25 | M71: 2010-04-16 | N71: 2011-04-15 | Q71: не об. | R71: 0 | S71: =[1]Портфель!Q493 -> 1 | T71: 0 | U71: 0 | V71: 0 | W71: Габсалямова О.С.( 300,0 т.р.) | AC71: 0 | AD71: 0 | AE71: 102.5390068 | AI71: 0
A72: =[1]Портфель!B94 -> Райпищекомбинат Красноармейский ООО( 30,0 млн.) | B72: оптовая и розничная торговля | C72: ф.Кубань | E72: без гр. | G72: =[1]Портфель!C94 -> 45206 | H72: ЮЛ-023 | I72: 5000000 | J72: =I72-K72 -> 3000000 | K72: =[1]Портфель!H94 -> 2000000 | L72: 20 | M72: 2010-04-29 | N72: 2011-04-20 | Q72: об. | R72: 0 | S72: =[1]Портфель!Q94 -> 1 | T72: 0 | U72: 0 | V72: 0 | W72: =[1]Портфель!X94 -> 0 | Z72: 0 | AC72: 0 | AD72: 0 | AE72: 1095.890411 | AF72: товары в обороте | AI72: 0
A73: ПКФ "Уют-Сервис"ООО | B73: оптовая и розничная торговля | C73: ф.Кубань | E73: без гр. | G73: 45207 | H73: 026-03 | I73: 0 | J73: 0 | K73: =[1]Портфель!H110 -> 787500 | L73: 20 | M73: 2010-05-27 | N73: 2011-04-20 | Q73: об. | R73: 0 | S73: 1 | T73: 0 | U73: 0 | V73: 0 | W73: ПКФ "Уют-Сервис"ООО | AC73: 0 | AD73: 0 | AE73: 431.5068493 | AI73: 0
A74: Мухамадисламова Э.В.( 65,0 т.р.) | D74: Инс. | E74: без гр. | G74: =[1]Портфель!C522 -> 45509 | H74: 91 | I74: 65000 | J74: =I74-K74 -> 58445.47 | K74: =[1]Портфель!H522 -> 6554.53 | L74: 25 | M74: 2010-04-23 | N74: 2011-04-22 | Q74: не об. | R74: 0 | S74: =[1]Портфель!Q522 -> 1 | T74: 0 | U74: 0 | V74: 0 | W74: Мухамадисламова Э.В.( 65,0 т.р.) | AC74: 0 | AD74: 0 | AE74: 4.48940411 | AI74: 0
A75: Усова Е.Ю. | E75: гр. | G75: =[1]Портфель!C175 -> 45505 | H75: 79*20 | I75: 0 | J75: 0 | K75: =[1]Портфель!H175 -> 6700000 | L75: 25 | M75: 2010-04-23 | N75: 2011-04-22 | Q75: не об. | R75: 0 | S75: =[1]Портфель!Q175 -> 2 | T75: 0 | U75: 0 | V75: 0 | W75: Усова Е.Ю. | Y75: 2011-02-10 | AC75: 0 | AD75: 0 | AE75: 4589.041096 | AI75: 0
A76: Строй УК Финанс ООО(2,7 млн.) | B76: строительство | E76: без гр. | G76: =[1]Портфель!C52 -> 45206 | H76: 55 | I76: 2700000 | J76: =I76-K76 -> -7300000 | K76: =[1]Портфель!H52 -> 10000000 | L76: 21 | M76: 2010-05-05 | N76: 2011-04-25 | P76: =N76-$K$1+1 ->  | Q76: не об. | R76: 5 | S76: 2 | T76: 500000 | U76: 135000 | V76: 365000 | W76: Строй УК Финанс ООО(2,7 млн.) | AC76: 0 | AD76: -365000 | AE76: 5753.424658 | AI76: 287.6712329
A77: Мистраль ООО(65,0 млн.) | B77: оптовая торговля топливом | E77: без гр. | G77: =[1]Портфель!C72 -> 45206 | H77: 53 | I77: 65000000 | J77: =I77-K77 -> 5000000 | K77: =[1]Портфель!H72 -> 60000000 | L77: 21 | M77: 2010-04-29 | N77: 2011-04-25 | P77: =N77-$K$1+1 ->  | Q77: не об. | R77: 1 | S77: =[1]Портфель!Q72 -> 2 | T77: 600000 | U77: 650000 | V77: -50000 | W77: Мистраль ООО(65,0 млн.) | AC77: 0 | AD77: 50000 | AE77: 34520.54795 | AI77: 345.2054795
A78: Трофимец С.Н.( 500,0 т.р.) | E78: без гр. | G78: =[1]Портфель!C530 -> 45509 | I78: 500000 | J78: =I78-K78 -> 496321.65 | K78: =[1]Портфель!H530 -> 3678.35 | L78: 25 | M78: 2010-04-28 | N78: 2011-04-27 | P78: =N78-$K$1+1 ->  | Q78: не об. | R78: 0 | S78: 1 | T78: 0 | U78: 0 | V78: 0 | W78: Трофимец С.Н.( 500,0 т.р.) | AC78: 0 | AD78: 0 | AE78: 2.519417808 | AI78: =AE78*R78% -> 0
A79: =[1]Портфель!B161 -> Зиннатуллин А.М. | E79: без гр. | G79: =[1]Портфель!C161 -> 45505 | H79: 93*20 | I79: 0 | J79: 0 | K79: =[1]Портфель!H161 -> 5000000 | L79: 21 | M79: 2010-05-12 | N79: 2011-04-28 | P79: =N79-$K$1+1 ->  | Q79: об. | R79: 0 | S79: =[1]Портфель!Q161 -> 1 | T79: 0 | U79: 0 | V79: 0 | W79: =[1]Портфель!X161 -> 0 | Z79: 0 | AC79: 0 | AD79: 0 | AE79: 2876.712329 | AI79: =AE79*R79% -> 0
A80: Зейтунян И.С. | E80: без гр. | G80: =[1]Портфель!C133 -> 0 | H80: =[1]Портфель!E133 -> 0 | I80: 0 | J80: 0 | K80: =[1]Портфель!H133 -> 3600000 | L80: =[1]Портфель!I133 -> 0 | M80: =[1]Портфель!K133 -> 00:00:00 | N80: =[1]Портфель!L133 -> 00:00:00 | P80: =N80-#REF!+1 ->  | Q80: =[1]Портфель!P133 -> 0 | R80: 0 | S80: =[1]Портфель!Q133 -> 0 | T80: 0 | U80: 0 | V80: 0 | W80: Зейтунян И.С. | AC80: 0 | AD80: 0 | AE80: 0
A81: Путенихин М.А.( 40,0 т.р.) | D81: Инс. | E81: без гр. | G81: =[1]Портфель!C526 -> 45509 | H81: 93 | I81: 120000 | J81: =I81-K81 -> 98033.12 | K81: =[1]Портфель!H526 -> 21966.88 | L81: 25 | M81: 2010-04-29 | N81: 2011-04-28 | P81: =N81-$K$1+1 ->  | Q81: не об. | R81: 0 | S81: =[1]Портфель!Q526 -> 1 | T81: 0 | U81: 0 | V81: 0 | W81: Путенихин М.А.( 40,0 т.р.) | AC81: 0 | AD81: 0 | AE81: 15.04580822 | AI81: =AE81*R81% -> 0
A82: Хабипов М.Ф. | D82: СК | E82: гр. | G82: =[1]Портфель!C267 -> 45506 | H82: 68*20 | I82: 0 | J82: 0 | K82: =[1]Портфель!H267 -> 37270 | L82: 25 | M82: 2008-05-08 | N82: 2011-04-29 | P82: =N82-$K$1+1 ->  | Q82: об. | R82: 0 | S82: =[1]Портфель!Q267 -> 2 | T82: 0 | U82: 0 | V82: 0 | W82: Хабипов М.Ф. | Y82: 2011-02-10 | AC82: 0 | AD82: 0 | AE82: 25.52739726 | AF82: транспорт | AI82: =AE82*R82% -> 0
A83: Шарипов Р.Р. | E83: без гр. | G83: =[1]Портфель!C265 -> 45506 | H83: 90*20 | I83: 0 | J83: 0 | K83: =[1]Портфель!H265 -> 213999.45 | L83: 25 | M83: 2009-11-02 | N83: 2010-11-01 | O83: 2011-04-30 | P83: =O83-#REF!+1 ->  | Q83: не об. | R83: 51 | S83: =[1]Портфель!Q265 -> 1 | T83: 109139.7195 | U83: 15453000 | V83: -15343860.28 | W83: Шарипов Р.Р. | AC83: 0 | AD83: 0 | AE83: 146.5749658 | AI83: =AE83*R83% -> 74.75323253
A84: Тавабилова Д.Р. (15,0 т.р.) | E84: без гр. | G84: =[1]Портфель!C532 -> 45509 | H84: 95 | I84: 15000 | J84: =I84-K84 -> -18439.8 | K84: =[1]Портфель!H532 -> 33439.8 | L84: 25 | M84: 2010-04-30 | N84: 2011-04-30 | P84: =N84-$K$1+1 ->  | Q84: не об. | R84: 0 | S84: =[1]Портфель!Q532 -> 1 | T84: 0 | U84: 0 | V84: 0 | W84: Тавабилова Д.Р. (15,0 т.р.) | AC84: 0 | AD84: 0 | AE84: 22.9039726 | AI84: =AE84*R84% -> 0
A85: Беленкова А.В.(150 т.р.) | D85: Инс. | E85: без гр. | G85: =[1]Портфель!C486 -> 45509 | H85: 98 | I85: 150000 | J85: =I85-K85 -> 125092.07 | K85: =[1]Портфель!H486 -> 24907.93 | L85: 25 | M85: 2010-05-05 | N85: 2011-05-04 | P85: =N85-$K$1+1 ->  | Q85: не об. | R85: 0 | S85: =[1]Портфель!Q486 -> 1 | T85: =K85*R85% -> 0 | U85: 0 | V85: =T85-U85 -> 0 | W85: Беленкова А.В.(150 т.р.) | Z85: =W85*R85% ->  | AC85: =AA85*R85% -> 0 | AD85: =R85%*J85 -> 0 | AE85: =K85*1*L85%/365 -> 17.06022603 | AI85: =AE85*R85% -> 0
A86: =[1]Портфель!B24 -> Итого по сч 45201 ( до 30 дней) | C86: л | E86: без гр. | G86: =[1]Портфель!C24 -> 0 | H86: =[1]Портфель!E24 -> 0 | K86: =[1]Портфель!H24 -> 71269930.61 | L86: =[1]Портфель!I24 -> 0 | M86: =[1]Портфель!K24 -> 00:00:00 | N86: =[1]Портфель!L24 -> 00:00:00 | P86: =N86-$K$1+1 ->  | Q86: =[1]Портфель!P24 -> 0 | R86: 21 | S86: =[1]Портфель!Q24 -> 0 | T86: =K86*R86% -> 14966685.43 | U86: 2100000 | V86: =T86-U86 -> 12866685.43 | W86: =[1]Портфель!X24 -> 0
A87: Уронова А.М. (10,0 т.р.) | E87: без гр. | G87: =[1]Портфель!C534 -> 45509 | H87: 94 | I87: 10000 | J87: =I87-K87 -> -165814.3 | K87: =[1]Портфель!H534 -> 175814.3 | L87: 25 | M87: 2010-04-30 | N87: 2011-04-30 | P87: =N87-$K$1+1 ->  | Q87: не об. | R87: 0 | S87: =[1]Портфель!Q534 -> 1 | T87: 0 | U87: 0 | V87: 0 | W87: Уронова А.М. (10,0 т.р.) | AC87: 0 | AD87: 0 | AE87: 120.4207534 | AI87: =AE87*R87% -> 0
A88: Итого (31-90 дн.) | I88: =SUM(I36:I87) -> 223755100 | J88: =SUM(J36:J87) -> 19943450.61 | K88: =SUM(K36:K87) -> 2686365049 | T88: =SUM(T36:T87) -> 23034705.15 | U88: =SUM(U36:U87) -> 21525750 | V88: =SUM(V26:V87) -> 33566258.68 | W88: Итого (31-90 дн.) | X88: =SUM(X45:X87) -> 0 | Z88: =SUM(Z45:Z87) ->  | AA88: =SUM(AA21:AA71) -> 0 | AB88: =SUM(AB21:AB71) -> 0 | AC88: =SUM(AC21:AC71) -> 0 | AD88: 0 | AE88: 0 | AI88: 0

Sheet отсортировано
A1: Наименование заемщика | B1: Отрасль | C1: Подразделение | D1: вид связи с банком | E1: Наличие графика | F1: вид валюты кредита | G1: Счет | H1: № дог. | I1: Лимит задолж. | J1: Свободный лимит | K1: Задолж. на текущ.дату, в рублях и в рубл. эквиваленте | L1: % | M1: Дата выдачи | N1: Дата погашения | O1: пролонга-ция | P1: Дн. до погаш. | Q1: Обеспе-чение | R1: % резер-ва | S1: Катег.качества | T1: Расчетный резерв | U1: Факт.сфор. РВПС | V1: Отклонения
